Cogmind - Beta 13 @@@ ROGUE MODE // 2024.07.20 @ 01:02:14 Player: Cinder Result: Destroyed by as-68085 with Assembled Heavy Rifle Performance ------------- Evolutions (0) 0 Regions Visited (2) 400 Robots Destroyed (4) 20 Value Destroyed (149) 149 Prototype IDs (0) 0 Alien Tech Used (0) 0 Bonus (0) 0 TOTAL SCORE: 569 Bonus ------- None Cogmind --------- Core Integrity 0/250 Matter 282/300 Energy 240/240 System Corruption 11% Temperature Cool (0) Movement Treading (170) Location -10/Mines Parts ------- > --- POWER (1) -------- Nuclear Core > --- PROPULSION (2) --- Armored Treads > --- UTILITY (2) ------ Small Storage Unit > --- WEAPON (2) ------- (None) > --- INVENTORY (8) ---- Ion Engine Light Ion Engine Light Ion Engine Light Treads Aluminum Leg Peak State ------------ > --- POWER ------------ Nuclear Core > --- PROPULSION ------- Aluminum Leg Carbon-fiber Leg > --- UTILITY ---------- Small Storage Unit ECM Suite > --- WEAPON ----------- EM Pulse Gun Assault Rifle > --- INVENTORY -------- Ion Engine Light Ion Engine Light Ion Engine Light Treads Armored Treads Aluminum Leg Heat Sink Medium Laser [Rating: 12] Favorites ----------- Power Ion Engine Engine Ion Engine Power Core Nuclear Core Propulsion Aluminum Leg Treads Armored Treads Leg Aluminum Leg Utility Small Storage Unit Device ECM Suite Storage Small Storage Unit Weapon Assault Rifle Energy Gun EM Pulse Gun Ballistic Gun Assault Rifle Build | -11 -10 -10 ------- Run | Yrd Mat Min Slots Evolved . | . . . Power . | . . . Propulsion . | . . . Utility . | . . . Weapon . | . . . Parts Attached 12 | 5 2 5 Power 2 | . 1 1 Engine 1 | . 1 . Core 1 | . . 1 Reactor . | . . . Propulsion 4 | 2 . 2 Treads 1 | . . 1 Leg 3 | 2 . 1 Wheel . | . . . Hover . | . . . Flight . | . . . Utility 3 | 1 1 1 Device 2 | . 1 1 Storage 1 | 1 . . Processor . | . . . Hackware . | . . . Protection . | . . . Artifact . | . . . Weapon 3 | 2 . 1 Energy Gun 2 | 1 . 1 Energy Cannon . | . . . Ballistic Gun 1 | 1 . . Ballistic Cannon . | . . . Launcher . | . . . Special Weapon . | . . . Impact Weapon . | . . . Slashing Weapon . | . . . Piercing Weapon . | . . . Special Melee Weapon . | . . . Unidentified Prototypes . | . . . Parts Lost 7 | . . 7 Power . | . . . Propulsion 2 | . . 2 Utility 2 | . . 2 Weapon 3 | . . 3 Highest Loss Streak 4 | . . 4 To Critical Strikes . | . . . Average Slot Usage (%) 91 | . 97 79 Engine 9 | . 12 3 Core 3 | . . 10 Leg 25 | . 28 20 Device 13 | . 13 14 Storage 14 | . 14 14 Energy Gun 13 | . 14 11 Ballistic Gun 10 | . 14 4 Naked Turns . | . . . Heaviest Build 18 | 9 16 18 Greatest Support 25 | 20 20 25 Greatest Overweight (x) 4 | . 1 4 Average Overweight (x) . | . . . Largest Inventory Capacity 8 | 8 8 8 Average Capacity 7 | 6 8 8 Most Carried 8 | 5 8 8 Average Carried 6 | 3 6 6 Final Capacity 8 | 8 8 8 Final Carried 8 | 5 8 5 Class Distribution -------------------- 100% | Mutant Dominant Class ---------------- Mutant | -10/Materials Mutant | -10/Mines Resources | -11 -10 -10 ----------- Run | Yrd Mat Min Matter Collected 312 | 202 110 . Remotely . | . . . Salvage Created 183 | . 183 . Parts 10 | . 10 . Haulers Intercepted . | . . . Recyclers Shooed 1 | . . 1 Parts Field Recycled . | . . . Retrieved Matter . | . . . Parts Self-Destructed . | . . . Prevented . | . . . Kills | -11 -10 -10 ------- Run | Yrd Mat Min Combat Hostiles Destroyed 4 | . 4 . Guns 4 | . 4 . Classes Destroyed 1 | . 1 . Grunt 4 | . 4 . Best Kill Streak 4 | . 4 . Combat Bots Only 4 | . 4 . Max Kills in Single Turn 1 | . 1 . Gunslinging . | . . . Exploded . | . . . Melee . | . . . Uniques/NPCs Destroyed . | . . . Combat | -11 -10 -10 -------- Run | Yrd Mat Min Hostile Shots Fired 100 | . 23 77 Missed 29 | . 3 26 Damage Taken 1082 | . 261 821 Core 261 | . 28 233 Absorbed by Shields . | . . . Core Remaining (%) 100 | 100 . . Volleys Fired 18 | . 14 4 Largest 2 | . 2 2 Hottest 60 | . 60 60 Shots Fired 33 | . 28 5 Gun 33 | . 28 5 Cannon . | . . . Launcher . | . . . Special . | . . . Kinetic 15 | . 14 1 Thermal 3 | . . 3 Explosive . | . . . Electromagnetic 15 | . 14 1 Robot Hit Streak 11 | . 11 4 Robot Miss Streak 1 | . 1 1 Penetration Max . | . . . Secondary Targets . | . . . Shots Hit Robots 27 | . 23 4 Core Hits 11 | . 9 2 Critical Kills . | . . . Critical Parts Destroyed . | . . . Critical Strikes 1 | . 1 . Corrupt 1 | . 1 . Melee Attacks . | . . . Impact . | . . . Slashing . | . . . Piercing . | . . . Sneak Attacks . | . . . Combat Hostiles . | . . . Follow-up Attacks . | . . . Damage Inflicted 359 | . 300 59 Guns 346 | . 300 46 Cannons . | . . . Explosions . | . . . Melee . | . . . Ramming 13 | . . 13 Kinetic 177 | . 167 10 Thermal 25 | . . 25 Explosive . | . . . Electromagnetic 144 | . 133 11 Impact . | . . . Slashing . | . . . Piercing . | . . . Highest Corruption 11 | . 2 11 Average Corruption 3 | . 2 6 Corruption Purged . | . . . Corruption Blocked . | . . . Effects 10 | . 5 5 Message Errors 3 | . 2 1 Matter Fused 1 | . . 1 Heat Flow Errors 1 | . 1 . Data Loss (minor) 3 | . 1 2 Data Loss (major) 1 | . . 1 Alerts 1 | . 1 . Overload Shots . | . . . Overflow Damage . | . . . Projectiles . | . . . Explosions . | . . . Melee . | . . . Knockbacks . | . . . Impact . | . . . Kinetic . | . . . Secondary . | . . . Self-Inflicted Damage . | . . . Shots . | . . . Rammed . | . . . Targets Rammed 5 | . . 5 Kicked 5 | . . 5 Crushed . | . . . Highest Temperature 265 | . 265 26 Average Temperature 61 | . 68 9 Received Heat Transfer 247 | . 147 100 Siege Activations . | . . . Robots Corrupted . | . . . Combat Hostiles . | . . . Parts Fried . | . . . Impact Corruptions . | . . . Robots Melted . | . . . Combat Hostiles . | . . . Parts Melted . | . . . Heat Transferred 74 | . . 74 Parts Sabotaged . | . . . Parts Stolen . | . . . Parts Stripped . | . . . Power Chain Reactions . | . . . Alert | -11 -10 -10 ------- Run | Yrd Mat Min Peak Influence 147 | . 147 72 Initial 57 | . . 57 Average 43 | . 55 41 Maximum Alert Level . | . . . Low Security (%) 100 | 100 100 100 Level 1 . | . . . Level 2 . | . . . Level 3 . | . . . Level 4 . | . . . Level 5 . | . . . High Security . | . . . Max Security . | . . . Squads Dispatched 1 | . . 1 Investigation 1 | . . 1 Extermination . | . . . Reinforcement . | . . . Assault . | . . . Garrison . | . . . Intercept . | . . . Searches Triggered . | . . . Construction Impeded . | . . . Haulers Reinforced . | . . . Active Scanning Responses . | . . . Cargo Convoy Interrupts . | . . . Stealth | -11 -10 -10 --------- Run | Yrd Mat Min Distress Signals 1 | . 1 . Communications Jammed . | . . . Distress Signals . | . . . Times Spotted 23 | . 8 15 Peak Tracking Total 12 | . 7 12 Tactical Retreats 8 | . 5 3 Traps | -11 -10 -10 ------- Run | Yrd Mat Min Traps Triggered 1 | . 1 . Indirectly . | . . . Trap Hack Attempts . | . . . Triggered . | . . . Disarmed . | . . . Reprogrammed . | . . . Reused . | . . . Traps Extracted . | . . . Installed . | . . . Triggered . | . . . Machines | -11 -10 -10 ---------- Run | Yrd Mat Min Machines Disabled . | . . . Max in Single Turn . | . . . Machines Repaired . | . . . Machines Dismantled . | . . . Machines Sabotaged . | . . . Overloaded Fab Kills . | . . . Hacking | -11 -10 -10 --------- Run | Yrd Mat Min Machines Accessed 2 | . 1 1 Terminals 1 | . 1 . Fabricators . | . . . Repair Stations . | . . . Recycling Units . | . . . Scanalyzers . | . . . Garrison Access . | . . . Total Hacks 4 | . 3 1 Successful 4 | . 3 1 Failed . | . . . Catastrophic . | . . . Database Lockouts . | . . . Manual . | . . . Terminals 3 | . 3 . Fabricators . | . . . Repair Stations . | . . . Recycling Units . | . . . Scanalyzers . | . . . Garrison Access . | . . . Terminal Hacks 4 | . 3 1 Open Door 1 | . . 1 Hauler Manifests 1 | . 1 . Registered Components 1 | . 1 . Zone Layout 1 | . 1 . Fabricator Hacks . | . . . Repair Station Hacks . | . . . Recycling Unit Hacks . | . . . Scanalyzer . | . . . Garrison Access Hacks . | . . . Unauthorized Hacks . | . . . Terminals . | . . . Fabricators . | . . . Repair Stations . | . . . Recycling Units . | . . . Scanalyzers . | . . . Garrison Access . | . . . Data Cores Recovered . | . . . Used . | . . . Hacking Detections 1 | . 1 . Full Trace Events . | . . . Feedback Events . | . . . Feedback Blocked . | . . . Robot Schematics Acquired . | . . . Robots Built . | . . . Authchips . | . . . Time . | . . . Total Robot Build Rating . | . . . Part Schematics Acquired . | . . . Parts Built . | . . . Authchips . | . . . Time . | . . . Total Part Build Rating . | . . . Parts Repaired . | . . . Time . | . . . Parts Recycled . | . . . Recycled Matter . | . . . Retrieved Matter . | . . . Retrieved Components . | . . . Parts Scanalyzed . | . . . Part Schematics Acquired . | . . . Parts Damaged . | . . . Bothacking | -11 -10 -10 ------------ Run | Yrd Mat Min Used RIF Installer . | . . . Robots Hacked . | . . . Non-combat . | . . . Combat . | . . . Robot Hacks Applied . | . . . Relay Couplers Released . | . . . Fabnet Peak Effective % . | . . . Robots Rewired . | . . . Allies Hacked . | . . . Hacks Repelled . | . . . Allies | -11 -10 -10 -------- Run | Yrd Mat Min Total Allies . | . . . Largest Group . | . . . Highest-Rated Group . | . . . Highest-Rated Ally . | . . . Total Orders . | . . . Ally Attacks . | . . . Total Damage . | . . . Kills . | . . . Allies Corrupted . | . . . Allies Melted . | . . . Intel | -11 -10 -10 ------- Run | Yrd Mat Min Robot Analysis Total . | . . . Derelict Logs Recovered . | . . . Drone Launches . | . . . Drone Recoveries . | . . . Exploration | -11 -10 -10 ------------- Run | Yrd Mat Min Turns Passed 423 | 56 241 126 Spaces Moved 254 | 46 124 84 Core 20 | 19 . 1 Treads 2 | . . 2 Legs 232 | 27 124 81 Wheels . | . . . Hover . | . . . Flight . | . . . Fastest Speed 50 | 50 120 120 Average Speed 125 | 91 139 122 Slowest Speed 250 | 120 190 250 Overloaded Moves . | . . . Propulsion Burnouts . | . . . Robots Hopped . | . . . Cave-ins Triggered . | . . . Exploration Rate (%) 19 | 3 27 28 Regions Visited 2 Branch Regions 1 Pre-discovered Areas . | . . . Known Exits Taken . | . . . Unknown Exits Taken 2 | 1 1 . Scrap Searched . | . . . Spaces Dug . | . . . Terrain Destroyed . | . . . Melee . | . . . Projectile . | . . . AOE . | . . . Terrain Rammed . | . . . Walls Destroyed . | . . . Machines Disabled . | . . . Actions | -11 -10 -10 --------- Run | Yrd Mat Min Total 326 | 60 164 102 Wait 18 | . 18 . Move 252 | 45 123 84 Hop . | . . . Pick Up 17 | 10 6 1 Fast Attach . | . . . Attach 10 | 5 2 3 Detach . | . . . Swap 2 | . . 2 Drop 4 | . 1 3 Fire 18 | . 14 4 Melee . | . . . Ram . | . . . Kick 5 | . . 5 Crush . | . . . Escape Stasis . | . . . Rewire . | . . . Trap . | . . . Miscellaneous . | . . . Route ------- -11/Scrapyard -10/Materials -10/Mines History --------- Turn | Location | Event 6 | -11/Scrapyard | Discovered new exit (range 14) 57 | -11/Scrapyard | Entered Materials 290 | -10/Materials | Discovered new exit (range 6) 298 | -10/Materials | Entered Mines 304 | -10/Mines | Assembled infested the area 307 | -10/Mines | Build established: Mutant 309 | -10/Mines | Assisted by a Guerilla fighting off Assembled 317 | -10/Mines | Met a Derelict shopkeep closing up shop 340 | -10/Mines | Core integrity fell below 50% 388 | -10/Mines | Core integrity fell below 20% 399 | -10/Mines | Lost 4 parts (1n1u2w) 424 | -10/Mines | System corruption reached 10% 424 | -10/Mines | Destroyed by as-68085 with Assembled Heavy Rifle Last Messages --------------- 00336_ System corrupted by crushing effect (+4). 00336_ Kicked as-50736. 00337_ Kicked as-50736 out of the way. 00338_ SPO OFEQTVC=WH|P DCQ |JK4 00339_ Assault Rifle destroyed. 00339_ System corrupted by crushing effect (+3). 00341_ ECM Suite destroyed. 00345_ Knocked back. 00353_ System corrupted: Substantial component data lost. 00368_ Aluminum Leg destroyed. 00373_ System corrupted: Component data lost. 00376_ Kicked R-06 Scavenger. 00391_ System corrupted: Component data lost. 00391_ T-07 Excavator destroyed. 00414_ System corrupted: Matter fused (-10). 00417_ Carbon-fiber Leg destroyed. 00419_ Med. Laser destroyed. 00423_ Heat Sink destroyed. 00423_ System corrupted by crushing effect (+2). Map ----- +----------------------------------------------------+ | ????????????## ???# #??????????????????????????? | | ???????????## #??# #??????????????????????????? | | ??????#???## #??# ###??????????????????????????? | | ??? ### ### #??# #????????????????????????????? | | ??? ##?# #????????????????????????????? | | ???? ### #????????????????????????????? | | ?????##### [ ####?????????????????????????? | | ?????# ! ##????????????????????????? | | ?????# #????????????????????????? | | ?????# ## #### ### [ #????????????????????????? | | ?????????????# #?## ##????????????????????????? | | ?????????????# #??## ##?????????????????????????? | | ????????# #### ##??? #??????????????????????????? | | ????????# #??? #??????????????????????????? | | ????????# ##### #???!|#??????????????????????????? | | ??????????????# ##??%| ??????????????????????????? | | ??????????????# ##?#%##?????????????????????????? | | ????????# ##### #?#=#??????????????????????????? | | ????????# #?#=#??????????????????????????? | | ????????###### #?# #??????????????????????????? | | ?????????????# ### #??????????????????????????? | | ????????????## ## ###????????????????????????? | | ????????????# """aa ##???????????????????????? | | ???????????# """ #???????????????????????? | | ??????????# """ #########???????????????? | | ??????????# aa a@ $ ????????? | | ??????????## ####################???????????????? | | ???????????###???????????????????????????????????? | | ?????????????????????????????????????????????????? | | | | | | | | | | | | | | | | | | | | | | | | | | | | | | | | | | | | | | | | | | | +----------------------------------------------------+ Best States ------------- Heat Dissipation 35 Energy Generation 14 Energy Capacity 250 Matter Stores 300 Matter Capacity 300 Sight Range 16 Terrain Scan Density 10 ECM Strength 1 Evasion (%) 55 Item Schematics ----------------- None Robot Schematics ------------------ None Fabricated ------------ Nothing Alien Tech Used ----------------- None Achievements -------------- None Challenges ------------ None Game ------ Seed ScatterLatentBeamcaster Manual? 0 Play Time 00:07:50 Cumulative 25.9 hours Start 2024.07.20 @ 00:53:02 End 2024.07.20 @ 01:02:14 Sessions 1 Manual Loads 0 Difficulty Rogue Special Mode None Game No. 55 Rogue 55 Adventurer 0 Explorer 0 Win Type - Total 0 Types 0/0/0/0/0/0/0/0/0 Lore% 20 Gallery% 27 Achievement% 20 Wizard Run 0 Options --------- Layout 1 ASCII 0 Keyboard 0 Movement Mouse Keybinds 0 Fullscreen 1 Font 24/Smallcaps Map View 50x35 Zoom Use 0% Tactical HUD 1 Map Filters NONE Filters NONE Steam 1 RUN: 56d26289-0cb2-4d59-a6b4-5713749b2022